[Event "Titled Tuesday Blitz May 30 Late 2023"]
[White "Bluebaum, Matthias"]
[Black "Rengifo Blancas, Renzo Jhonathan"]
[WhiteFideId "24651516"]
[BlackFideId "3807185"]
[WhiteElo "2639"]
[BlackElo "2085"]
[Result "1-0"]
[Round "01"]
[TimeControl "180+2"]
[Date "2023.05.31"]
[WhiteClock "0:01:01"]
[BlackClock "0:00:03"]

1. d4 {[%clk 0:03:00]}  d5 {[%clk 0:02:59]} 2. c4 {[%clk 0:03:01]}  c6 {[%clk 0:02:59]} 3. Nf3 {[%clk 0:03:01]}  Nf6 {[%clk 0:02:59]} 4. Nc3 {[%clk 0:03:02]}  dxc4 {[%clk 0:02:59]} 5. e4 {[%clk 0:03:02]}  b5 {[%clk 0:02:58]} 6. Qc2 {[%clk 0:03:03]}  g6 {[%clk 0:02:57]} 7. a4 {[%clk 0:03:01]}  b4 {[%clk 0:02:50]} 8. Ne2 {[%clk 0:03:01]}  c3 {[%clk 0:02:50]} 9. bxc3 {[%clk 0:03:00]}  bxc3 {[%clk 0:02:50]} 10. Nxc3 {[%clk 0:03:00]}  Bg7 {[%clk 0:02:50]} 11. e5 {[%clk 0:02:46]}  Nd5 {[%clk 0:02:49]} 12. Nxd5 {[%clk 0:02:47]}  cxd5 {[%clk 0:02:47]} 13. Bb5+ {[%clk 0:02:46]}  Bd7 {[%clk 0:02:47]} 14. O-O {[%clk 0:02:45]}  O-O {[%clk 0:02:39]} 15. Bg5 {[%clk 0:02:40]}  h6 {[%clk 0:02:38]} 16. Bh4 {[%clk 0:02:38]}  a6 {[%clk 0:02:34]} 17. Bxd7 {[%clk 0:02:33]}  Nxd7 {[%clk 0:02:29]} 18. e6 {[%clk 0:02:29]}  Rc8 {[%clk 0:01:30]} 19. exf7+ {[%clk 0:02:28]}  Kxf7 {[%clk 0:01:29]} 20. Qd3 {[%clk 0:02:28]}  g5 {[%clk 0:01:25]} 21. Bxg5 {[%clk 0:02:28]}  hxg5 {[%clk 0:01:22]} 22. Nxg5+ {[%clk 0:02:29]}  Kf6 {[%clk 0:01:22]} 23. f4 {[%clk 0:02:21]}  e6 {[%clk 0:01:17]} 24. Rae1 {[%clk 0:02:15]}  Re8 {[%clk 0:01:17]} 25. f5 {[%clk 0:01:49]}  e5 {[%clk 0:01:16]} 26. Ne6 {[%clk 0:01:49]}  Qe7 {[%clk 0:01:05]} 27. Qg3 {[%clk 0:01:27]}  Qf7 {[%clk 0:00:03]} 28. Qg5# {[%clk 0:01:01]} 1-0


[Site "https://www.chess.com"]

[Event "Titled Tuesday Blitz May 30 Late 2023"]
[White "Garakov, Mikhael"]
[Black "Bortnyk, Olexandr"]
[WhiteFideId "4169034"]
[BlackFideId "14120828"]
[WhiteElo "2347"]
[BlackElo "2734"]
[Result "1-0"]
[Round "01"]
[TimeControl "180+2"]
[Date "2023.05.31"]
[WhiteClock "0:00:07"]
[BlackClock "0:00:00"]

1. e4 {[%clk 0:02:58]}  Nf6 {[%clk 0:02:56]} 2. e5 {[%clk 0:02:55]}  Nd5 {[%clk 0:02:56]} 3. d4 {[%clk 0:02:56]}  d6 {[%clk 0:02:56]} 4. Nf3 {[%clk 0:02:56]}  dxe5 {[%clk 0:02:56]} 5. Nxe5 {[%clk 0:02:56]}  c6 {[%clk 0:02:56]} 6. Bc4 {[%clk 0:02:48]}  Nd7 {[%clk 0:02:55]} 7. Nf3 {[%clk 0:02:48]}  N7f6 {[%clk 0:02:54]} 8. h3 {[%clk 0:02:48]}  Bf5 {[%clk 0:02:52]} 9. O-O {[%clk 0:02:47]}  e6 {[%clk 0:02:53]} 10. Re1 {[%clk 0:02:43]}  Bd6 {[%clk 0:02:46]} 11. Bb3 {[%clk 0:02:42]}  O-O {[%clk 0:02:45]} 12. c4 {[%clk 0:02:40]}  Nb4 {[%clk 0:02:18]} 13. Nh4 {[%clk 0:02:00]}  Bxb1 {[%clk 0:01:39]} 14. Rxb1 {[%clk 0:01:59]}  a5 {[%clk 0:01:40]} 15. a3 {[%clk 0:01:43]}  Na6 {[%clk 0:01:34]} 16. Bc2 {[%clk 0:01:40]}  b5 {[%clk 0:01:27]} 17. b3 {[%clk 0:01:32]}  Be7 {[%clk 0:01:24]} 18. Nf3 {[%clk 0:01:30]}  Qc7 {[%clk 0:01:12]} 19. Qd3 {[%clk 0:01:07]}  Rfd8 {[%clk 0:01:07]} 20. Bg5 {[%clk 0:00:51]}  Nc5 {[%clk 0:01:01]} 21. Qe3 {[%clk 0:00:46]}  Ncd7 {[%clk 0:01:00]} 22. a4 {[%clk 0:00:40]}  h6 {[%clk 0:00:55]} 23. Bf4 {[%clk 0:00:39]}  Bd6 {[%clk 0:00:55]} 24. Ne5 {[%clk 0:00:35]}  bxa4 {[%clk 0:00:56]} 25. bxa4 {[%clk 0:00:35]}  c5 {[%clk 0:00:56]} 26. Nxf7 {[%clk 0:00:25]}  Bxf4 {[%clk 0:00:37]} 27. Qxe6 {[%clk 0:00:25]}  Nf8 {[%clk 0:00:22]} 28. Nxh6+ {[%clk 0:00:25]}  Kh8 {[%clk 0:00:22]} 29. Nf7+ {[%clk 0:00:20]}  Kg8 {[%clk 0:00:22]} 30. Nh6+ {[%clk 0:00:17]}  Kh8 {[%clk 0:00:22]} 31. Nf7+ {[%clk 0:00:17]}  Qxf7 {[%clk 0:00:22]} 32. Qxf7 {[%clk 0:00:17]}  cxd4 {[%clk 0:00:23]} 33. Rb5 {[%clk 0:00:15]}  d3 {[%clk 0:00:21]} 34. Bd1 {[%clk 0:00:13]}  Bh6 {[%clk 0:00:16]} 35. Re7 {[%clk 0:00:12]}  Re8 {[%clk 0:00:13]} 36. c5 {[%clk 0:00:11]}  Rxe7 {[%clk 0:00:13]} 37. Qxe7 {[%clk 0:00:10]}  Re8 {[%clk 0:00:14]} 38. Qxe8 {[%clk 0:00:10]}  Nxe8 {[%clk 0:00:13]} 39. Rb8 {[%clk 0:00:11]}  Nc7 {[%clk 0:00:09]} 40. Rxf8+ {[%clk 0:00:11]}  Kh7 {[%clk 0:00:10]} 41. Rd8 {[%clk 0:00:10]}  Ne6 {[%clk 0:00:09]} 42. Rd5 {[%clk 0:00:08]}  Nf4 {[%clk 0:00:06]} 43. Rd6 {[%clk 0:00:07]}  Bg5 {[%clk 0:00:05]} 44. c6 {[%clk 0:00:07]}  Be7 {[%clk 0:00:05]} 45. Rd7 {[%clk 0:00:07]}  Bc5 {[%clk 0:00:04]} 46. c7 {[%clk 0:00:08]}  Ne2+ {[%clk 0:00:03]} 47. Kf1 {[%clk 0:00:08]}  Nc3 {[%clk 0:00:01]} 48. c8=Q {[%clk 0:00:08]}  Ne4 {[%clk 0:00:01]} 49. Rxd3 {[%clk 0:00:07]}  Bxf2 {[%clk 0:00:01]} 50. Qf5+ {[%clk 0:00:06]}  g6 {[%clk 0:00:02]} 51. Qxe4 {[%clk 0:00:07]}  Bd4 {[%clk 0:00:02]} 52. Rxd4 {[%clk 0:00:07]}  Kh8 {[%clk 0:00:00]} 53. Rd7 {[%clk 0:00:07]} 1-0


[Site "https://www.chess.com"]

[Event "Titled Tuesday Blitz May 30 Late 2023"]
[White "Kramnik, Vladimir"]
[Black "Bringas Gomez, Artai"]
[WhiteFideId "4101588"]
[BlackFideId "24534064"]
[WhiteElo "2703"]
[BlackElo "2179"]
[Result "1-0"]
[Round "01"]
[TimeControl "180+2"]
[Date "2023.05.31"]
[WhiteClock "0:00:09"]
[BlackClock "0:00:05"]

1. e4 {[%clk 0:03:00]}  c6 {[%clk 0:03:00]} 2. d4 {[%clk 0:02:58]}  d5 {[%clk 0:03:00]} 3. Nd2 {[%clk 0:02:58]}  dxe4 {[%clk 0:03:00]} 4. Nxe4 {[%clk 0:02:59]}  Nd7 {[%clk 0:03:00]} 5. Bc4 {[%clk 0:02:56]}  Ngf6 {[%clk 0:02:58]} 6. Nxf6+ {[%clk 0:02:56]}  Nxf6 {[%clk 0:02:57]} 7. c3 {[%clk 0:02:56]}  Nd5 {[%clk 0:02:45]} 8. Nf3 {[%clk 0:02:50]}  Nb6 {[%clk 0:02:38]} 9. Bb3 {[%clk 0:02:49]}  Bf5 {[%clk 0:02:38]} 10. g4 {[%clk 0:02:42]}  Bg6 {[%clk 0:02:23]} 11. h4 {[%clk 0:02:39]}  e6 {[%clk 0:02:21]} 12. Qe2 {[%clk 0:02:36]}  h5 {[%clk 0:01:50]} 13. Ne5 {[%clk 0:02:36]}  Nd5 {[%clk 0:01:35]} 14. Nxg6 {[%clk 0:02:32]}  fxg6 {[%clk 0:01:36]} 15. Qxe6+ {[%clk 0:02:30]}  Qe7 {[%clk 0:01:37]} 16. Qxe7+ {[%clk 0:02:23]}  Bxe7 {[%clk 0:01:37]} 17. g5 {[%clk 0:02:19]}  O-O {[%clk 0:01:29]} 18. Be3 {[%clk 0:02:17]}  Kh7 {[%clk 0:01:27]} 19. Ke2 {[%clk 0:02:06]}  Bd6 {[%clk 0:01:24]} 20. Rae1 {[%clk 0:02:03]}  Rae8 {[%clk 0:01:18]} 21. Kd3 {[%clk 0:01:36]}  Rf5 {[%clk 0:01:04]} 22. a4 {[%clk 0:01:04]}  a5 {[%clk 0:00:48]} 23. Bxd5 {[%clk 0:00:51]}  cxd5 {[%clk 0:00:40]} 24. b3 {[%clk 0:00:49]}  Kg8 {[%clk 0:00:39]} 25. c4 {[%clk 0:00:30]}  dxc4+ {[%clk 0:00:21]} 26. bxc4 {[%clk 0:00:29]}  Bb4 {[%clk 0:00:21]} 27. Re2 {[%clk 0:00:27]}  Rf7 {[%clk 0:00:20]} 28. c5 {[%clk 0:00:26]}  Rd7 {[%clk 0:00:20]} 29. Kc4 {[%clk 0:00:25]}  Re4 {[%clk 0:00:19]} 30. Rb2 {[%clk 0:00:18]}  Kf7 {[%clk 0:00:15]} 31. Rb3 {[%clk 0:00:18]}  Rc7 {[%clk 0:00:16]} 32. Kb5 {[%clk 0:00:17]}  Rce7 {[%clk 0:00:14]} 33. d5 {[%clk 0:00:16]}  R4e5 {[%clk 0:00:13]} 34. Rd3 {[%clk 0:00:16]}  Rd7 {[%clk 0:00:14]} 35. Rhd1 {[%clk 0:00:13]}  Ke8 {[%clk 0:00:09]} 36. Kb6 {[%clk 0:00:13]}  Kd8 {[%clk 0:00:09]} 37. c6 {[%clk 0:00:13]}  bxc6 {[%clk 0:00:07]} 38. dxc6 {[%clk 0:00:13]}  Rxd3 {[%clk 0:00:08]} 39. Rxd3+ {[%clk 0:00:12]}  Kc8 {[%clk 0:00:09]} 40. Rd7 {[%clk 0:00:12]}  Be7 {[%clk 0:00:08]} 41. Ra7 {[%clk 0:00:11]}  Bc5+ {[%clk 0:00:08]} 42. Bxc5 {[%clk 0:00:10]}  Re8 {[%clk 0:00:05]} 43. Ra8# {[%clk 0:00:09]} 1-0


[Site "https://www.chess.com"]

[Event "Titled Tuesday Blitz May 30 Late 2023"]
[White "D`Arruda, Ricardo D."]
[Black "Moussard, Jules"]
[WhiteFideId "100692"]
[BlackFideId "642908"]
[WhiteElo "2509"]
[BlackElo "2610"]
[Result "0-1"]
[Round "01"]
[TimeControl "180+2"]
[Date "2023.05.31"]
[WhiteClock "0:00:00"]
[BlackClock "0:00:05"]

1. d4 {[%clk 0:02:59]}  d6 {[%clk 0:02:58]} 2. e4 {[%clk 0:02:58]}  g6 {[%clk 0:02:58]} 3. Nc3 {[%clk 0:02:58]}  Bg7 {[%clk 0:02:59]} 4. Nf3 {[%clk 0:02:58]}  a6 {[%clk 0:02:59]} 5. Bg5 {[%clk 0:02:59]}  b5 {[%clk 0:02:57]} 6. Qd2 {[%clk 0:02:59]}  Bb7 {[%clk 0:02:57]} 7. O-O-O {[%clk 0:02:58]}  Nd7 {[%clk 0:02:53]} 8. e5 {[%clk 0:02:57]}  dxe5 {[%clk 0:02:39]} 9. dxe5 {[%clk 0:02:58]}  Bxf3 {[%clk 0:02:22]} 10. gxf3 {[%clk 0:02:56]}  Bxe5 {[%clk 0:02:09]} 11. Bh3 {[%clk 0:02:45]}  Nb6 {[%clk 0:01:36]} 12. Qe2 {[%clk 0:02:27]}  Bd6 {[%clk 0:01:35]} 13. Rhe1 {[%clk 0:02:22]}  Kf8 {[%clk 0:01:30]} 14. Ne4 {[%clk 0:02:13]}  h6 {[%clk 0:01:25]} 15. Be3 {[%clk 0:01:46]}  Nf6 {[%clk 0:01:21]} 16. Bd4 {[%clk 0:01:06]}  Kg7 {[%clk 0:01:16]} 17. Nxd6 {[%clk 0:01:03]}  exd6 {[%clk 0:01:09]} 18. Qd2 {[%clk 0:00:58]}  c5 {[%clk 0:01:03]} 19. Bc3 {[%clk 0:00:52]}  b4 {[%clk 0:00:58]} 20. Bxf6+ {[%clk 0:00:51]}  Qxf6 {[%clk 0:00:59]} 21. Qxd6 {[%clk 0:00:51]}  Rhd8 {[%clk 0:00:29]} 22. Qxf6+ {[%clk 0:00:31]}  Kxf6 {[%clk 0:00:29]} 23. Rxd8 {[%clk 0:00:29]}  Rxd8 {[%clk 0:00:30]} 24. Bf1 {[%clk 0:00:28]}  a5 {[%clk 0:00:29]} 25. b3 {[%clk 0:00:27]}  Rd4 {[%clk 0:00:29]} 26. Re3 {[%clk 0:00:24]}  Nd5 {[%clk 0:00:28]} 27. Re8 {[%clk 0:00:19]}  Nc3 {[%clk 0:00:21]} 28. Bd3 {[%clk 0:00:19]}  Rf4 {[%clk 0:00:19]} 29. Rc8 {[%clk 0:00:18]}  Rxf3 {[%clk 0:00:17]} 30. Rxc5 {[%clk 0:00:18]}  Nxa2+ {[%clk 0:00:16]} 31. Kd1 {[%clk 0:00:16]}  Rxf2 {[%clk 0:00:14]} 32. Rxa5 {[%clk 0:00:15]}  Nc3+ {[%clk 0:00:15]} 33. Ke1 {[%clk 0:00:15]}  Rxh2 {[%clk 0:00:16]} 34. Ra7 {[%clk 0:00:14]}  h5 {[%clk 0:00:14]} 35. Bc4 {[%clk 0:00:14]}  Rxc2 {[%clk 0:00:14]} 36. Rxf7+ {[%clk 0:00:14]}  Kg5 {[%clk 0:00:14]} 37. Rb7 {[%clk 0:00:15]}  h4 {[%clk 0:00:11]} 38. Rxb4 {[%clk 0:00:15]}  h3 {[%clk 0:00:12]} 39. Ba6 {[%clk 0:00:10]}  h2 {[%clk 0:00:06]} 40. Bb7 {[%clk 0:00:11]}  Rc1+ {[%clk 0:00:02]} 41. Kd2 {[%clk 0:00:10]}  Na2 {[%clk 0:00:02]} 42. Ra4 {[%clk 0:00:08]}  Rc7 {[%clk 0:00:02]} 43. Bh1 {[%clk 0:00:07]}  Nc3 {[%clk 0:00:03]} 44. Ra5+ {[%clk 0:00:06]}  Kh4 {[%clk 0:00:03]} 45. b4 {[%clk 0:00:06]}  g5 {[%clk 0:00:03]} 46. Rc5 {[%clk 0:00:05]}  Rxc5 {[%clk 0:00:03]} 47. bxc5 {[%clk 0:00:06]}  Nb5 {[%clk 0:00:03]} 48. Kd3 {[%clk 0:00:05]}  Kg3 {[%clk 0:00:03]} 49. Kc4 {[%clk 0:00:05]}  Nc7 {[%clk 0:00:03]} 50. c6 {[%clk 0:00:05]}  Kf2 {[%clk 0:00:04]} 51. Kc5 {[%clk 0:00:05]}  g4 {[%clk 0:00:04]} 52. Kd6 {[%clk 0:00:05]}  Na6 {[%clk 0:00:05]} 53. Ke5 {[%clk 0:00:03]}  g3 {[%clk 0:00:05]} 54. Kf4 {[%clk 0:00:00]}  g2 {[%clk 0:00:05]} 0-1


[Site "https://www.chess.com"]

[Event "Titled Tuesday Blitz May 30 Late 2023"]
[White "Pranav, V"]
[Black "Baches Garcia, Guillermo"]
[WhiteFideId "25060783"]
[BlackFideId "2209764"]
[WhiteElo "2515"]
[BlackElo "2506"]
[Result "1-0"]
[Round "01"]
[TimeControl "180+2"]
[Date "2023.05.31"]
[WhiteClock "0:01:29"]
[BlackClock "0:00:00"]

1. e4 {[%clk 0:02:57]}  d5 {[%clk 0:03:00]} 2. exd5 {[%clk 0:02:57]}  Qxd5 {[%clk 0:03:00]} 3. Nc3 {[%clk 0:02:57]}  Qa5 {[%clk 0:03:00]} 4. d4 {[%clk 0:02:57]}  Nf6 {[%clk 0:03:00]} 5. Nf3 {[%clk 0:02:56]}  Bf5 {[%clk 0:02:58]} 6. Bc4 {[%clk 0:02:57]}  e6 {[%clk 0:02:59]} 7. Bd2 {[%clk 0:02:56]}  Bb4 {[%clk 0:02:58]} 8. O-O {[%clk 0:02:55]}  Nc6 {[%clk 0:02:50]} 9. a3 {[%clk 0:02:55]}  Bxc3 {[%clk 0:02:49]} 10. Bxc3 {[%clk 0:02:55]}  Qb6 {[%clk 0:02:49]} 11. Re1 {[%clk 0:02:53]}  O-O-O {[%clk 0:02:41]} 12. h3 {[%clk 0:02:39]}  Be4 {[%clk 0:02:22]} 13. Nd2 {[%clk 0:02:23]}  Bg6 {[%clk 0:02:09]} 14. Nb3 {[%clk 0:02:20]}  e5 {[%clk 0:01:47]} 15. a4 {[%clk 0:01:59]}  Nxd4 {[%clk 0:01:36]} 16. Bxd4 {[%clk 0:01:58]}  exd4 {[%clk 0:01:33]} 17. a5 {[%clk 0:01:58]}  Qc6 {[%clk 0:01:28]} 18. Bd3 {[%clk 0:01:56]}  Bxd3 {[%clk 0:01:21]} 19. Qxd3 {[%clk 0:01:56]}  Qd5 {[%clk 0:01:10]} 20. Ra4 {[%clk 0:01:50]}  Rhe8 {[%clk 0:01:04]} 21. Rd1 {[%clk 0:01:49]}  Qe4 {[%clk 0:00:53]} 22. a6 {[%clk 0:01:36]}  Qxd3 {[%clk 0:00:48]} 23. axb7+ {[%clk 0:01:36]}  Kxb7 {[%clk 0:00:44]} 24. cxd3 {[%clk 0:01:36]}  Re2 {[%clk 0:00:36]} 25. Na5+ {[%clk 0:01:36]}  Kc8 {[%clk 0:00:34]} 26. Nc4 {[%clk 0:01:37]}  Kb7 {[%clk 0:00:31]} 27. Rda1 {[%clk 0:01:35]}  Rde8 {[%clk 0:00:28]} 28. Rxa7+ {[%clk 0:01:34]}  Kc6 {[%clk 0:00:28]} 29. Kf1 {[%clk 0:01:33]}  R2e7 {[%clk 0:00:24]} 30. Rc1 {[%clk 0:01:32]}  Kd5 {[%clk 0:00:18]} 31. Ra5+ {[%clk 0:01:31]}  Ke6 {[%clk 0:00:16]} 32. Rc5 {[%clk 0:01:30]}  Nd5 {[%clk 0:00:00]} 33. Re1+ {[%clk 0:01:29]} 1-0


[Site "https://www.chess.com"]

[Event "Titled Tuesday Blitz May 30 Late 2023"]
[White "Kubicka, Anna"]
[Black "Deac, Bogdan-Daniel"]
[WhiteFideId "1152254"]
[BlackFideId "1226380"]
[WhiteElo "2144"]
[BlackElo "2649"]
[Result "0-1"]
[Round "01"]
[TimeControl "180+2"]
[Date "2023.05.31"]
[WhiteClock "0:00:01"]
[BlackClock "0:00:08"]

1. e4 {[%clk 0:03:00]}  g6 {[%clk 0:02:42]} 2. d4 {[%clk 0:02:59]}  Bg7 {[%clk 0:02:43]} 3. Be3 {[%clk 0:02:56]}  c5 {[%clk 0:02:42]} 4. Nf3 {[%clk 0:02:53]}  cxd4 {[%clk 0:02:38]} 5. Bxd4 {[%clk 0:02:52]}  Bxd4 {[%clk 0:02:35]} 6. Qxd4 {[%clk 0:02:51]}  Nf6 {[%clk 0:02:36]} 7. e5 {[%clk 0:02:48]}  Nc6 {[%clk 0:02:36]} 8. Qc3 {[%clk 0:02:29]}  Nd5 {[%clk 0:02:24]} 9. Qd2 {[%clk 0:02:28]}  Qa5 {[%clk 0:02:23]} 10. Bc4 {[%clk 0:02:15]}  Qxd2+ {[%clk 0:01:56]} 11. Nbxd2 {[%clk 0:02:16]}  Nf4 {[%clk 0:01:56]} 12. g3 {[%clk 0:02:00]}  Ne6 {[%clk 0:01:56]} 13. O-O {[%clk 0:01:54]}  b6 {[%clk 0:01:52]} 14. c3 {[%clk 0:01:46]}  Bb7 {[%clk 0:01:51]} 15. Bd5 {[%clk 0:01:45]}  Nc7 {[%clk 0:01:41]} 16. Be4 {[%clk 0:01:42]}  O-O-O {[%clk 0:01:19]} 17. Rfe1 {[%clk 0:01:40]}  h6 {[%clk 0:01:17]} 18. Nb3 {[%clk 0:01:39]}  Kb8 {[%clk 0:00:51]} 19. a4 {[%clk 0:01:36]}  a5 {[%clk 0:00:47]} 20. Nbd4 {[%clk 0:01:35]}  g5 {[%clk 0:00:45]} 21. Nxc6+ {[%clk 0:01:28]}  dxc6 {[%clk 0:00:42]} 22. Nd4 {[%clk 0:01:27]}  c5 {[%clk 0:00:36]} 23. Nc6+ {[%clk 0:01:20]}  Bxc6 {[%clk 0:00:36]} 24. Bxc6 {[%clk 0:01:21]}  Rd2 {[%clk 0:00:36]} 25. b4 {[%clk 0:01:19]}  cxb4 {[%clk 0:00:35]} 26. cxb4 {[%clk 0:01:20]}  axb4 {[%clk 0:00:35]} 27. a5 {[%clk 0:01:17]}  b5 {[%clk 0:00:34]} 28. Reb1 {[%clk 0:01:11]}  Rd4 {[%clk 0:00:31]} 29. Rb2 {[%clk 0:00:59]}  Ka7 {[%clk 0:00:31]} 30. Rc1 {[%clk 0:00:49]}  Rhd8 {[%clk 0:00:23]} 31. Bf3 {[%clk 0:00:47]}  Na6 {[%clk 0:00:19]} 32. Kg2 {[%clk 0:00:42]}  Rc4 {[%clk 0:00:18]} 33. Rcb1 {[%clk 0:00:33]}  Rc5 {[%clk 0:00:14]} 34. e6 {[%clk 0:00:33]}  f5 {[%clk 0:00:14]} 35. Re1 {[%clk 0:00:26]}  Rd6 {[%clk 0:00:13]} 36. h3 {[%clk 0:00:20]}  Rc4 {[%clk 0:00:13]} 37. Re5 {[%clk 0:00:18]}  Rc5 {[%clk 0:00:11]} 38. Rxc5 {[%clk 0:00:18]}  Nxc5 {[%clk 0:00:11]} 39. Rxb4 {[%clk 0:00:18]}  Ka6 {[%clk 0:00:11]} 40. Be2 {[%clk 0:00:18]}  Nd3 {[%clk 0:00:12]} 41. Rb3 {[%clk 0:00:16]}  Nc1 {[%clk 0:00:12]} 42. Bxb5+ {[%clk 0:00:16]}  Kxa5 {[%clk 0:00:12]} 43. Rb1 {[%clk 0:00:17]}  Na2 {[%clk 0:00:07]} 44. Bd7 {[%clk 0:00:16]}  Nb4 {[%clk 0:00:07]} 45. Ra1+ {[%clk 0:00:15]}  Kb6 {[%clk 0:00:06]} 46. Rb1 {[%clk 0:00:16]}  Kc5 {[%clk 0:00:06]} 47. Rc1+ {[%clk 0:00:16]}  Kd4 {[%clk 0:00:06]} 48. Rd1+ {[%clk 0:00:16]}  Kc5 {[%clk 0:00:06]} 49. Rc1+ {[%clk 0:00:16]}  Kd4 {[%clk 0:00:06]} 50. Rd1+ {[%clk 0:00:16]}  Nd3 {[%clk 0:00:07]} 51. Bb5 {[%clk 0:00:16]}  Kc3 {[%clk 0:00:06]} 52. Bxd3 {[%clk 0:00:15]}  Rxd3 {[%clk 0:00:07]} 53. Re1 {[%clk 0:00:16]}  Kd4 {[%clk 0:00:07]} 54. Ra1 {[%clk 0:00:08]}  Ke5 {[%clk 0:00:07]} 55. Ra6 {[%clk 0:00:05]}  Rd6 {[%clk 0:00:06]} 56. f4+ {[%clk 0:00:05]}  gxf4 {[%clk 0:00:05]} 57. gxf4+ {[%clk 0:00:06]}  Kxe6 {[%clk 0:00:06]} 58. Ra5 {[%clk 0:00:06]}  Kf6 {[%clk 0:00:05]} 59. Kg3 {[%clk 0:00:06]}  Rd3+ {[%clk 0:00:06]} 60. Kh4 {[%clk 0:00:05]}  Rf3 {[%clk 0:00:05]} 61. Ra4 {[%clk 0:00:05]}  e6 {[%clk 0:00:05]} 62. Rb4 {[%clk 0:00:05]}  Re3 {[%clk 0:00:06]} 63. Rb8 {[%clk 0:00:03]}  Re4 {[%clk 0:00:06]} 64. Kg3 {[%clk 0:00:03]}  Re3+ {[%clk 0:00:06]} 65. Kh4 {[%clk 0:00:04]}  Rd3 {[%clk 0:00:05]} 66. Rb4 {[%clk 0:00:04]}  Rf3 {[%clk 0:00:05]} 67. Ra4 {[%clk 0:00:03]}  Re3 {[%clk 0:00:05]} 68. Ra8 {[%clk 0:00:03]}  Re4 {[%clk 0:00:05]} 69. Kg3 {[%clk 0:00:03]}  Rd4 {[%clk 0:00:05]} 70. Rb8 {[%clk 0:00:03]}  h5 {[%clk 0:00:04]} 71. Ra8 {[%clk 0:00:03]}  h4+ {[%clk 0:00:04]} 72. Kxh4 {[%clk 0:00:03]}  Rxf4+ {[%clk 0:00:04]} 73. Kg3 {[%clk 0:00:04]}  Re4 {[%clk 0:00:04]} 74. h4 {[%clk 0:00:04]}  Re3+ {[%clk 0:00:04]} 75. Kg2 {[%clk 0:00:04]}  Kg6 {[%clk 0:00:04]} 76. Rg8+ {[%clk 0:00:03]}  Kh5 {[%clk 0:00:04]} 77. Rh8+ {[%clk 0:00:04]}  Kg4 {[%clk 0:00:05]} 78. h5 {[%clk 0:00:04]}  Re4 {[%clk 0:00:05]} 79. h6 {[%clk 0:00:04]}  Kg5 {[%clk 0:00:05]} 80. h7 {[%clk 0:00:04]}  Kg6 {[%clk 0:00:05]} 81. Kf3 {[%clk 0:00:04]}  Kg7 {[%clk 0:00:06]} 82. Re8 {[%clk 0:00:03]}  Kxh7 {[%clk 0:00:06]} 83. Ra8 {[%clk 0:00:03]}  Kg6 {[%clk 0:00:06]} 84. Ra2 {[%clk 0:00:03]}  Kf6 {[%clk 0:00:06]} 85. Ra6 {[%clk 0:00:03]}  Rd4 {[%clk 0:00:06]} 86. Ke3 {[%clk 0:00:03]}  Rc4 {[%clk 0:00:07]} 87. Kd3 {[%clk 0:00:03]}  Re4 {[%clk 0:00:06]} 88. Ra8 {[%clk 0:00:02]}  Ke5 {[%clk 0:00:06]} 89. Ra5+ {[%clk 0:00:02]}  Kf4 {[%clk 0:00:06]} 90. Ra1 {[%clk 0:00:02]}  e5 {[%clk 0:00:07]} 91. Rf1+ {[%clk 0:00:02]}  Kg5 {[%clk 0:00:07]} 92. Rg1+ {[%clk 0:00:02]}  Rg4 {[%clk 0:00:07]} 93. Re1 {[%clk 0:00:02]}  Rg3+ {[%clk 0:00:07]} 94. Ke2 {[%clk 0:00:02]}  e4 {[%clk 0:00:07]} 95. Kf2 {[%clk 0:00:03]}  Kf4 {[%clk 0:00:07]} 96. Rh1 {[%clk 0:00:02]}  e3+ {[%clk 0:00:07]} 97. Ke2 {[%clk 0:00:02]}  Rg2+ {[%clk 0:00:08]} 98. Kf1 {[%clk 0:00:03]}  Kf3 {[%clk 0:00:08]} 99. Rh3+ {[%clk 0:00:03]}  Rg3 {[%clk 0:00:08]} 100. Rh5 {[%clk 0:00:01]}  e2+ {[%clk 0:00:08]} 0-1


[Site "https://www.chess.com"]

[Event "Titled Tuesday Blitz May 30 Late 2023"]
[White "Kevlishvili, Robby"]
[Black "Toncheva, Nadya"]
[WhiteFideId "1040634"]
[BlackFideId "2924056"]
[WhiteElo "2572"]
[BlackElo "2101"]
[Result "1-0"]
[Round "01"]
[TimeControl "180+2"]
[Date "2023.05.31"]
[WhiteClock "0:01:12"]
[BlackClock "0:00:11"]

1. e4 {[%clk 0:03:00]}  c5 {[%clk 0:02:59]} 2. Nf3 {[%clk 0:03:00]}  Nc6 {[%clk 0:02:59]} 3. d4 {[%clk 0:02:57]}  cxd4 {[%clk 0:02:59]} 4. Nxd4 {[%clk 0:02:58]}  e6 {[%clk 0:03:00]} 5. Nc3 {[%clk 0:02:57]}  Qc7 {[%clk 0:03:00]} 6. f4 {[%clk 0:02:56]}  a6 {[%clk 0:02:58]} 7. Nxc6 {[%clk 0:02:56]}  bxc6 {[%clk 0:02:56]} 8. Bd3 {[%clk 0:02:56]}  d5 {[%clk 0:02:56]} 9. O-O {[%clk 0:02:57]}  Nf6 {[%clk 0:02:55]} 10. Qe2 {[%clk 0:02:54]}  Be7 {[%clk 0:02:54]} 11. Bd2 {[%clk 0:02:54]}  O-O {[%clk 0:02:52]} 12. Rae1 {[%clk 0:02:54]}  Bb7 {[%clk 0:02:36]} 13. e5 {[%clk 0:02:52]}  Nd7 {[%clk 0:02:30]} 14. f5 {[%clk 0:02:53]}  exf5 {[%clk 0:02:09]} 15. e6 {[%clk 0:02:51]}  Bc5+ {[%clk 0:02:05]} 16. Kh1 {[%clk 0:02:50]}  fxe6 {[%clk 0:01:47]} 17. Qxe6+ {[%clk 0:02:50]}  Kh8 {[%clk 0:01:46]} 18. Rxf5 {[%clk 0:02:46]}  Nf6 {[%clk 0:01:20]} 19. Na4 {[%clk 0:02:05]}  Rfe8 {[%clk 0:01:12]} 20. Nxc5 {[%clk 0:02:05]}  Rxe6 {[%clk 0:01:13]} 21. Nxe6 {[%clk 0:02:06]}  Qf7 {[%clk 0:01:00]} 22. Ng5 {[%clk 0:02:02]}  Qd7 {[%clk 0:00:57]} 23. Rfe5 {[%clk 0:02:00]}  h6 {[%clk 0:00:50]} 24. Re7 {[%clk 0:01:53]}  Qg4 {[%clk 0:00:25]} 25. Nf7+ {[%clk 0:01:51]}  Kg8 {[%clk 0:00:26]} 26. Rxb7 {[%clk 0:01:46]}  Re8 {[%clk 0:00:27]} 27. Rf1 {[%clk 0:01:32]}  Qh4 {[%clk 0:00:24]} 28. Nd6 {[%clk 0:01:23]}  Rf8 {[%clk 0:00:22]} 29. h3 {[%clk 0:01:16]}  Rd8 {[%clk 0:00:16]} 30. Rxg7+ {[%clk 0:01:15]}  Kh8 {[%clk 0:00:14]} 31. Rg6 {[%clk 0:01:12]}  Rxd6 {[%clk 0:00:11]} 32. Rxh6+ {[%clk 0:01:12]} 1-0


[Site "https://www.chess.com"]